[Event "Titled Tuesday Blitz December 7 2021"]
[White "Ceres, Dragos"]
[Black "Makarian, Rudik"]
[WhiteFideId "13905864"]
[BlackFideId "44105681"]
[WhiteElo "2094"]
[BlackElo "2486"]
[Result "0-1"]
[Round "03"]
[TimeControl "180+1"]
[Date "2021.12.07"]
[WhiteClock "0:00:01"]
[BlackClock "0:00:33"]

1. e4 {[%clk 0:03:00]}  c6 {[%clk 0:02:59]} 2. d4 {[%clk 0:02:59]}  d5 {[%clk 0:03:00]} 3. f3 {[%clk 0:02:59]}  e6 {[%clk 0:02:54]} 4. Nc3 {[%clk 0:02:58]}  Bb4 {[%clk 0:02:54]} 5. a3 {[%clk 0:02:57]}  Bxc3+ {[%clk 0:02:52]} 6. bxc3 {[%clk 0:02:56]}  Nf6 {[%clk 0:02:52]} 7. Bd3 {[%clk 0:02:45]}  b6 {[%clk 0:02:52]} 8. e5 {[%clk 0:02:45]}  Nfd7 {[%clk 0:02:52]} 9. a4 {[%clk 0:02:44]}  Ba6 {[%clk 0:02:51]} 10. Ba3 {[%clk 0:02:44]}  c5 {[%clk 0:02:51]} 11. f4 {[%clk 0:02:14]}  O-O {[%clk 0:02:41]} 12. Nf3 {[%clk 0:02:07]}  f5 {[%clk 0:02:35]} 13. O-O {[%clk 0:02:01]}  Re8 {[%clk 0:02:17]} 14. a5 {[%clk 0:01:45]}  Nc6 {[%clk 0:02:13]} 15. Bxa6 {[%clk 0:01:42]}  Nxa5 {[%clk 0:02:13]} 16. Bb5 {[%clk 0:01:38]}  a6 {[%clk 0:02:09]} 17. Bxd7 {[%clk 0:01:35]}  Qxd7 {[%clk 0:02:10]} 18. dxc5 {[%clk 0:01:36]}  Nc4 {[%clk 0:02:02]} 19. Qd4 {[%clk 0:01:24]}  bxc5 {[%clk 0:01:59]} 20. Bxc5 {[%clk 0:01:22]}  Rec8 {[%clk 0:02:00]} 21. Qf2 {[%clk 0:01:17]}  a5 {[%clk 0:01:58]} 22. Rfb1 {[%clk 0:01:15]}  a4 {[%clk 0:01:58]} 23. Bb4 {[%clk 0:01:09]}  a3 {[%clk 0:01:55]} 24. Nd2 {[%clk 0:01:08]}  a2 {[%clk 0:01:56]} 25. Rb3 {[%clk 0:00:53]}  Nxd2 {[%clk 0:01:02]} 26. Qxd2 {[%clk 0:00:52]}  Ra4 {[%clk 0:01:03]} 27. Rb2 {[%clk 0:00:42]}  Rca8 {[%clk 0:01:04]} 28. Qd4 {[%clk 0:00:34]}  Qb5 {[%clk 0:01:00]} 29. Kf2 {[%clk 0:00:32]}  Qa6 {[%clk 0:00:58]} 30. g3 {[%clk 0:00:29]}  Rc8 {[%clk 0:00:57]} 31. Qd3 {[%clk 0:00:24]}  Rc4 {[%clk 0:00:55]} 32. Bd6 {[%clk 0:00:20]}  h6 {[%clk 0:00:53]} 33. h4 {[%clk 0:00:20]}  Kh7 {[%clk 0:00:53]} 34. Kg2 {[%clk 0:00:18]}  Qc6 {[%clk 0:00:48]} 35. Kh2 {[%clk 0:00:14]}  Rxc3 {[%clk 0:00:46]} 36. Qb5 {[%clk 0:00:07]}  Rxc2+ {[%clk 0:00:46]} 37. Kh3 {[%clk 0:00:08]}  Qxb5 {[%clk 0:00:37]} 38. Rxb5 {[%clk 0:00:09]}  Re4 {[%clk 0:00:38]} 39. Ra5 {[%clk 0:00:06]}  Ree2 {[%clk 0:00:38]} 40. Rh1 {[%clk 0:00:02]}  d4 {[%clk 0:00:38]} 41. Bc5 {[%clk 0:00:01]}  d3 {[%clk 0:00:39]} 42. Bb4 {[%clk 0:00:01]}  d2 {[%clk 0:00:33]} 0-1


[Site "https://www.chess.com"]

[Event "Titled Tuesday Blitz December 7 2021"]
[White "Demin, Vladimir"]
[Black "Le, Tuan Minh"]
[WhiteFideId "4167457"]
[BlackFideId "12401153"]
[WhiteElo "2502"]
[BlackElo "2450"]
[Result "0-1"]
[Round "03"]
[TimeControl "180+1"]
[Date "2021.12.07"]
[WhiteClock "0:00:18"]
[BlackClock "0:00:11"]

1. e4 {[%clk 0:03:00]}  c5 {[%clk 0:02:52]} 2. Nf3 {[%clk 0:03:00]}  Nf6 {[%clk 0:02:46]} 3. e5 {[%clk 0:03:00]}  Nd5 {[%clk 0:02:46]} 4. d4 {[%clk 0:03:01]}  cxd4 {[%clk 0:02:45]} 5. Qxd4 {[%clk 0:03:02]}  e6 {[%clk 0:02:45]} 6. c3 {[%clk 0:03:00]}  Nc6 {[%clk 0:02:44]} 7. Qe4 {[%clk 0:03:00]}  f5 {[%clk 0:02:45]} 8. Qe2 {[%clk 0:03:00]}  d6 {[%clk 0:02:42]} 9. g3 {[%clk 0:02:59]}  dxe5 {[%clk 0:02:33]} 10. Nxe5 {[%clk 0:02:58]}  Nxe5 {[%clk 0:02:02]} 11. Qxe5 {[%clk 0:02:57]}  Qd6 {[%clk 0:01:51]} 12. Qe2 {[%clk 0:02:49]}  Be7 {[%clk 0:01:18]} 13. Bg2 {[%clk 0:02:48]}  O-O {[%clk 0:01:18]} 14. O-O {[%clk 0:02:49]}  Bf6 {[%clk 0:01:13]} 15. Rd1 {[%clk 0:02:40]}  Qc5 {[%clk 0:01:06]} 16. Nd2 {[%clk 0:02:28]}  Bd7 {[%clk 0:00:26]} 17. Nb3 {[%clk 0:02:26]}  Qc8 {[%clk 0:00:27]} 18. Nd4 {[%clk 0:02:17]}  Kh8 {[%clk 0:00:23]} 19. h4 {[%clk 0:02:01]}  a6 {[%clk 0:00:16]} 20. a4 {[%clk 0:01:49]}  Qe8 {[%clk 0:00:15]} 21. a5 {[%clk 0:01:33]}  Rd8 {[%clk 0:00:15]} 22. Bg5 {[%clk 0:01:27]}  Qf7 {[%clk 0:00:15]} 23. Re1 {[%clk 0:01:09]}  e5 {[%clk 0:00:12]} 24. Bxf6 {[%clk 0:01:02]}  gxf6 {[%clk 0:00:11]} 25. Nc2 {[%clk 0:00:58]}  f4 {[%clk 0:00:12]} 26. Rad1 {[%clk 0:00:56]}  Bc6 {[%clk 0:00:12]} 27. Kh2 {[%clk 0:00:42]}  Rg8 {[%clk 0:00:13]} 28. Rg1 {[%clk 0:00:34]}  Qg6 {[%clk 0:00:13]} 29. Be4 {[%clk 0:00:31]}  Nxc3 {[%clk 0:00:12]} 30. Bxg6 {[%clk 0:00:22]}  Nxe2 {[%clk 0:00:12]} 31. Bf7 {[%clk 0:00:18]}  Nxg1 {[%clk 0:00:11]} 0-1


[Site "https://www.chess.com"]

[Event "Titled Tuesday Blitz December 7 2021"]
[White "Diaz Camallonga, Carles"]
[Black "Tomaszewski, Kacper"]
[WhiteFideId "22235256"]
[BlackFideId "1127373"]
[WhiteElo "2438"]
[BlackElo "2153"]
[Result "1-0"]
[Round "03"]
[TimeControl "180+1"]
[Date "2021.12.07"]
[WhiteClock "0:00:09"]
[BlackClock "0:00:04"]

1. e4 {[%clk 0:03:00]}  c6 {[%clk 0:02:58]} 2. Nc3 {[%clk 0:03:00]}  d5 {[%clk 0:02:58]} 3. Nf3 {[%clk 0:03:01]}  Bg4 {[%clk 0:02:57]} 4. Be2 {[%clk 0:03:00]}  e6 {[%clk 0:02:52]} 5. d4 {[%clk 0:03:00]}  dxe4 {[%clk 0:02:49]} 6. Nxe4 {[%clk 0:02:59]}  Nd7 {[%clk 0:02:41]} 7. Bf4 {[%clk 0:02:53]}  Ndf6 {[%clk 0:02:40]} 8. Neg5 {[%clk 0:02:46]}  Bxf3 {[%clk 0:02:23]} 9. Nxf3 {[%clk 0:02:42]}  Nd5 {[%clk 0:02:19]} 10. Bg3 {[%clk 0:02:37]}  Bd6 {[%clk 0:02:17]} 11. Ne5 {[%clk 0:02:33]}  Ngf6 {[%clk 0:02:11]} 12. c3 {[%clk 0:02:23]}  O-O {[%clk 0:02:06]} 13. Bd3 {[%clk 0:02:14]}  Ne7 {[%clk 0:02:03]} 14. Bh4 {[%clk 0:01:57]}  Ng6 {[%clk 0:01:54]} 15. Nxg6 {[%clk 0:01:52]}  hxg6 {[%clk 0:01:53]} 16. Qf3 {[%clk 0:01:45]}  Be7 {[%clk 0:01:53]} 17. O-O-O {[%clk 0:01:41]}  Qd5 {[%clk 0:01:45]} 18. Qxd5 {[%clk 0:01:15]}  cxd5 {[%clk 0:01:41]} 19. h3 {[%clk 0:01:10]}  Rfc8 {[%clk 0:01:40]} 20. Rhe1 {[%clk 0:01:07]}  a6 {[%clk 0:01:39]} 21. a4 {[%clk 0:01:05]}  Rab8 {[%clk 0:01:38]} 22. Bg3 {[%clk 0:01:03]}  Ra8 {[%clk 0:01:36]} 23. Kc2 {[%clk 0:00:55]}  Ne8 {[%clk 0:01:33]} 24. a5 {[%clk 0:00:50]}  Bd6 {[%clk 0:01:23]} 25. Be5 {[%clk 0:00:28]}  Bxe5 {[%clk 0:01:21]} 26. dxe5 {[%clk 0:00:29]}  Nc7 {[%clk 0:01:15]} 27. Kd2 {[%clk 0:00:19]}  Nb5 {[%clk 0:01:14]} 28. Ra1 {[%clk 0:00:17]}  Rc6 {[%clk 0:01:13]} 29. Ra4 {[%clk 0:00:16]}  Nc7 {[%clk 0:00:59]} 30. Rb4 {[%clk 0:00:16]}  Ra7 {[%clk 0:00:59]} 31. Ra1 {[%clk 0:00:16]}  Rc5 {[%clk 0:00:55]} 32. Ra3 {[%clk 0:00:15]}  Ne8 {[%clk 0:00:45]} 33. Rab3 {[%clk 0:00:12]}  Rc7 {[%clk 0:00:40]} 34. c4 {[%clk 0:00:08]}  dxc4 {[%clk 0:00:34]} 35. Rxc4 {[%clk 0:00:09]}  Kf8 {[%clk 0:00:30]} 36. Kc3 {[%clk 0:00:08]}  Ke7 {[%clk 0:00:29]} 37. Kd4 {[%clk 0:00:08]}  Rd7+ {[%clk 0:00:28]} 38. Ke3 {[%clk 0:00:08]}  Nc7 {[%clk 0:00:27]} 39. Be4 {[%clk 0:00:07]}  Nd5+ {[%clk 0:00:21]} 40. Kf3 {[%clk 0:00:07]}  Ra8 {[%clk 0:00:16]} 41. g3 {[%clk 0:00:07]}  Rad8 {[%clk 0:00:15]} 42. Kg2 {[%clk 0:00:07]}  g5 {[%clk 0:00:10]} 43. Bf3 {[%clk 0:00:07]}  f6 {[%clk 0:00:10]} 44. exf6+ {[%clk 0:00:07]}  gxf6 {[%clk 0:00:11]} 45. h4 {[%clk 0:00:07]}  gxh4 {[%clk 0:00:11]} 46. Rxh4 {[%clk 0:00:07]}  Kd6 {[%clk 0:00:11]} 47. Bxd5 {[%clk 0:00:06]}  exd5 {[%clk 0:00:10]} 48. Rb6+ {[%clk 0:00:06]}  Ke5 {[%clk 0:00:10]} 49. Rf4 {[%clk 0:00:07]}  Rd6 {[%clk 0:00:10]} 50. Rxb7 {[%clk 0:00:06]}  R8d7 {[%clk 0:00:11]} 51. Rxd7 {[%clk 0:00:06]}  Rxd7 {[%clk 0:00:11]} 52. Kf3 {[%clk 0:00:07]}  Rb7 {[%clk 0:00:11]} 53. b4 {[%clk 0:00:07]}  d4 {[%clk 0:00:11]} 54. Re4+ {[%clk 0:00:06]}  Kd5 {[%clk 0:00:12]} 55. Rf4 {[%clk 0:00:07]}  Kc4 {[%clk 0:00:12]} 56. Rxf6 {[%clk 0:00:07]}  d3 {[%clk 0:00:10]} 57. Rc6+ {[%clk 0:00:07]}  Kxb4 {[%clk 0:00:09]} 58. Ke3 {[%clk 0:00:08]}  Rd7 {[%clk 0:00:08]} 59. Kd2 {[%clk 0:00:08]}  Kxa5 {[%clk 0:00:08]} 60. g4 {[%clk 0:00:09]}  Kb5 {[%clk 0:00:09]} 61. Rc3 {[%clk 0:00:09]}  a5 {[%clk 0:00:09]} 62. Rxd3 {[%clk 0:00:09]}  Rg7 {[%clk 0:00:09]} 63. f3 {[%clk 0:00:09]}  a4 {[%clk 0:00:09]} 64. Ke3 {[%clk 0:00:09]}  Kb4 {[%clk 0:00:10]} 65. Kf4 {[%clk 0:00:10]}  a3 {[%clk 0:00:10]} 66. g5 {[%clk 0:00:10]}  a2 {[%clk 0:00:11]} 67. Rd1 {[%clk 0:00:10]}  Kc3 {[%clk 0:00:11]} 68. Kf5 {[%clk 0:00:10]}  Rf7+ {[%clk 0:00:11]} 69. Kg4 {[%clk 0:00:10]}  Rd7 {[%clk 0:00:11]} 70. Rf1 {[%clk 0:00:08]}  Kc2 {[%clk 0:00:11]} 71. Ra1 {[%clk 0:00:08]}  Kb2 {[%clk 0:00:11]} 72. Rxa2+ {[%clk 0:00:09]}  Kxa2 {[%clk 0:00:12]} 73. g6 {[%clk 0:00:09]}  Kb3 {[%clk 0:00:11]} 74. f4 {[%clk 0:00:09]}  Kc4 {[%clk 0:00:11]} 75. Kg5 {[%clk 0:00:09]}  Kd5 {[%clk 0:00:11]} 76. f5 {[%clk 0:00:10]}  Ke5 {[%clk 0:00:07]} 77. f6 {[%clk 0:00:10]}  Rd1 {[%clk 0:00:07]} 78. f7 {[%clk 0:00:09]}  Rg1+ {[%clk 0:00:07]} 79. Kh6 {[%clk 0:00:09]}  Rh1+ {[%clk 0:00:04]} 80. Kg7 {[%clk 0:00:09]} 1-0


[Site "https://www.chess.com"]

[Event "Titled Tuesday Blitz December 7 2021"]
[White "Dmitrenko, Viktor"]
[Black "Goltsev, Dmitry"]
[WhiteFideId "14110270"]
[BlackFideId "24176710"]
[WhiteElo "2262"]
[BlackElo "2259"]
[Result "0-1"]
[Round "03"]
[TimeControl "180+1"]
[Date "2021.12.07"]
[WhiteClock "0:00:08"]
[BlackClock "0:01:23"]

1. Nf3 {[%clk 0:03:00]}  d5 {[%clk 0:02:59]} 2. d4 {[%clk 0:02:59]}  c6 {[%clk 0:03:00]} 3. e3 {[%clk 0:02:58]}  Nf6 {[%clk 0:03:01]} 4. c4 {[%clk 0:02:57]}  Bf5 {[%clk 0:03:01]} 5. Bd3 {[%clk 0:02:56]}  Bxd3 {[%clk 0:03:00]} 6. Qxd3 {[%clk 0:02:57]}  e6 {[%clk 0:03:01]} 7. Nbd2 {[%clk 0:02:56]}  Nbd7 {[%clk 0:03:02]} 8. O-O {[%clk 0:02:55]}  Bd6 {[%clk 0:03:01]} 9. e4 {[%clk 0:02:42]}  dxe4 {[%clk 0:03:02]} 10. Nxe4 {[%clk 0:02:42]}  Nxe4 {[%clk 0:03:03]} 11. Qxe4 {[%clk 0:02:42]}  Nf6 {[%clk 0:03:04]} 12. Qh4 {[%clk 0:02:40]}  O-O {[%clk 0:03:03]} 13. Bg5 {[%clk 0:02:38]}  Be7 {[%clk 0:03:03]} 14. Rfe1 {[%clk 0:02:23]}  h6 {[%clk 0:03:02]} 15. Bxh6 {[%clk 0:02:15]}  gxh6 {[%clk 0:02:55]} 16. Qxh6 {[%clk 0:02:15]}  Nh7 {[%clk 0:02:48]} 17. Re3 {[%clk 0:01:45]}  Kh8 {[%clk 0:02:41]} 18. Rae1 {[%clk 0:01:41]}  Bg5 {[%clk 0:02:40]} 19. Nxg5 {[%clk 0:01:28]}  Qxg5 {[%clk 0:02:40]} 20. Qh3 {[%clk 0:01:28]}  Rg8 {[%clk 0:02:33]} 21. Re5 {[%clk 0:01:15]}  Qg4 {[%clk 0:02:25]} 22. Rh5 {[%clk 0:01:03]}  Qxh3 {[%clk 0:02:18]} 23. Rxh3 {[%clk 0:01:04]}  Rad8 {[%clk 0:02:17]} 24. Rh4 {[%clk 0:01:03]}  Rg6 {[%clk 0:02:11]} 25. g3 {[%clk 0:00:59]}  Kg7 {[%clk 0:02:10]} 26. Kg2 {[%clk 0:00:57]}  Nf6 {[%clk 0:02:03]} 27. Rf4 {[%clk 0:00:55]}  Ne8 {[%clk 0:01:59]} 28. b3 {[%clk 0:00:53]}  Nd6 {[%clk 0:01:59]} 29. Re5 {[%clk 0:00:45]}  Nf5 {[%clk 0:01:58]} 30. d5 {[%clk 0:00:41]}  cxd5 {[%clk 0:01:59]} 31. cxd5 {[%clk 0:00:40]}  Rd6 {[%clk 0:01:51]} 32. h4 {[%clk 0:00:30]}  Ne7 {[%clk 0:01:41]} 33. dxe6 {[%clk 0:00:26]}  Rdxe6 {[%clk 0:01:41]} 34. Rb5 {[%clk 0:00:24]}  b6 {[%clk 0:01:40]} 35. h5 {[%clk 0:00:22]}  Rgf6 {[%clk 0:01:40]} 36. Rg4+ {[%clk 0:00:19]}  Kh6 {[%clk 0:01:40]} 37. f4 {[%clk 0:00:18]}  Rf5 {[%clk 0:01:39]} 38. Rxf5 {[%clk 0:00:15]}  Nxf5 {[%clk 0:01:40]} 39. Rg8 {[%clk 0:00:15]}  Re2+ {[%clk 0:01:38]} 40. Kf3 {[%clk 0:00:14]}  Nd4+ {[%clk 0:01:27]} 41. Kg4 {[%clk 0:00:12]}  f5+ {[%clk 0:01:27]} 42. Kh3 {[%clk 0:00:12]}  Rxa2 {[%clk 0:01:27]} 43. Rh8+ {[%clk 0:00:10]}  Kg7 {[%clk 0:01:27]} 44. Rd8 {[%clk 0:00:09]}  Nxb3 {[%clk 0:01:22]} 45. g4 {[%clk 0:00:09]}  fxg4+ {[%clk 0:01:22]} 46. Kxg4 {[%clk 0:00:09]}  Nc5 {[%clk 0:01:23]} 47. Kg5 {[%clk 0:00:08]}  Ne6+ {[%clk 0:01:23]} 0-1


[Site "https://www.chess.com"]

[Event "Titled Tuesday Blitz December 7 2021"]
[White "Donchenko, Alexander"]
[Black "Yakimova, Mariya"]
[WhiteFideId "24603295"]
[BlackFideId "34188859"]
[WhiteElo "2494"]
[BlackElo "2070"]
[Result "1-0"]
[Round "03"]
[TimeControl "180+1"]
[Date "2021.12.07"]
[WhiteClock "0:00:05"]
[BlackClock "0:00:07"]

1. e4 {[%clk 0:03:00]}  c5 {[%clk 0:02:56]} 2. Nf3 {[%clk 0:03:00]}  Nc6 {[%clk 0:02:56]} 3. d4 {[%clk 0:03:00]}  cxd4 {[%clk 0:02:56]} 4. Nxd4 {[%clk 0:03:01]}  Nf6 {[%clk 0:02:56]} 5. Nc3 {[%clk 0:03:01]}  e5 {[%clk 0:02:56]} 6. Ndb5 {[%clk 0:03:01]}  d6 {[%clk 0:02:56]} 7. Bg5 {[%clk 0:03:01]}  a6 {[%clk 0:02:56]} 8. Na3 {[%clk 0:03:02]}  b5 {[%clk 0:02:56]} 9. Nd5 {[%clk 0:03:02]}  Be7 {[%clk 0:02:55]} 10. Bxf6 {[%clk 0:03:01]}  Bxf6 {[%clk 0:02:56]} 11. c3 {[%clk 0:03:01]}  O-O {[%clk 0:02:56]} 12. h4 {[%clk 0:02:59]}  Be6 {[%clk 0:02:43]} 13. Nc2 {[%clk 0:02:58]}  Rb8 {[%clk 0:02:42]} 14. g3 {[%clk 0:02:52]}  g6 {[%clk 0:02:37]} 15. h5 {[%clk 0:02:49]}  Bg5 {[%clk 0:02:37]} 16. Bh3 {[%clk 0:02:45]}  a5 {[%clk 0:02:03]} 17. hxg6 {[%clk 0:02:40]}  hxg6 {[%clk 0:01:59]} 18. Nce3 {[%clk 0:02:07]}  Kg7 {[%clk 0:01:41]} 19. Kf1 {[%clk 0:01:44]}  Ne7 {[%clk 0:01:11]} 20. Kg2 {[%clk 0:01:30]}  f5 {[%clk 0:00:59]} 21. exf5 {[%clk 0:01:26]}  gxf5 {[%clk 0:00:42]} 22. b3 {[%clk 0:00:56]}  Qd7 {[%clk 0:00:39]} 23. c4 {[%clk 0:00:54]}  bxc4 {[%clk 0:00:40]} 24. bxc4 {[%clk 0:00:54]}  Rh8 {[%clk 0:00:39]} 25. Rb1 {[%clk 0:00:51]}  Rxb1 {[%clk 0:00:34]} 26. Qxb1 {[%clk 0:00:51]}  Bxd5+ {[%clk 0:00:33]} 27. cxd5 {[%clk 0:00:51]}  Bxe3 {[%clk 0:00:32]} 28. fxe3 {[%clk 0:00:52]}  Nxd5 {[%clk 0:00:32]} 29. Kf2 {[%clk 0:00:49]}  Qa7 {[%clk 0:00:27]} 30. Qd3 {[%clk 0:00:48]}  Qc5 {[%clk 0:00:17]} 31. Bg2 {[%clk 0:00:42]}  Rxh1 {[%clk 0:00:15]} 32. Bxh1 {[%clk 0:00:43]}  Nf6 {[%clk 0:00:15]} 33. Qxf5 {[%clk 0:00:40]}  Qc4 {[%clk 0:00:13]} 34. Bf3 {[%clk 0:00:32]}  Qxa2+ {[%clk 0:00:13]} 35. Be2 {[%clk 0:00:33]}  a4 {[%clk 0:00:12]} 36. g4 {[%clk 0:00:33]}  Qf7 {[%clk 0:00:09]} 37. Kg1 {[%clk 0:00:28]}  a3 {[%clk 0:00:08]} 38. g5 {[%clk 0:00:28]}  Ne8 {[%clk 0:00:05]} 39. Qb1 {[%clk 0:00:09]}  a2 {[%clk 0:00:05]} 40. Qb2 {[%clk 0:00:09]}  Nc7 {[%clk 0:00:05]} 41. Bd1 {[%clk 0:00:07]}  Qd5 {[%clk 0:00:04]} 42. Bb3 {[%clk 0:00:07]}  Qf3 {[%clk 0:00:04]} 43. Bxa2 {[%clk 0:00:05]}  Qxe3+ {[%clk 0:00:05]} 44. Kf1 {[%clk 0:00:06]}  Qxg5 {[%clk 0:00:05]} 45. Qb7 {[%clk 0:00:06]}  Qf6+ {[%clk 0:00:05]} 46. Ke2 {[%clk 0:00:05]}  Qe7 {[%clk 0:00:06]} 47. Qc6 {[%clk 0:00:05]}  Kf6 {[%clk 0:00:06]} 48. Qf3+ {[%clk 0:00:05]}  Kg7 {[%clk 0:00:07]} 49. Qg4+ {[%clk 0:00:05]}  Kf6 {[%clk 0:00:07]} 50. Qh4+ {[%clk 0:00:05]} 1-0


[Site "https://www.chess.com"]

[Event "Titled Tuesday Blitz December 7 2021"]
[White "Durarbayli, Vasif"]
[Black "Halkias, Stelios"]
[WhiteFideId "13402935"]
[BlackFideId "4201809"]
[WhiteElo "2599"]
[BlackElo "2575"]
[Result "0-1"]
[Round "03"]
[TimeControl "180+1"]
[Date "2021.12.07"]
[WhiteClock "0:00:02"]
[BlackClock "0:00:25"]

1. e4 {[%clk 0:03:00]}  c5 {[%clk 0:02:59]} 2. b3 {[%clk 0:03:00]}  Nc6 {[%clk 0:02:56]} 3. Bb2 {[%clk 0:02:59]}  e6 {[%clk 0:02:56]} 4. Nf3 {[%clk 0:02:46]}  Nf6 {[%clk 0:02:52]} 5. e5 {[%clk 0:02:42]}  Nd5 {[%clk 0:02:51]} 6. c4 {[%clk 0:02:37]}  Nf4 {[%clk 0:02:51]} 7. Nc3 {[%clk 0:02:17]}  d5 {[%clk 0:02:34]} 8. exd6 {[%clk 0:02:15]}  Qxd6 {[%clk 0:02:33]} 9. Nb5 {[%clk 0:01:53]}  Qd8 {[%clk 0:02:26]} 10. g3 {[%clk 0:01:51]}  a6 {[%clk 0:01:57]} 11. gxf4 {[%clk 0:01:44]}  axb5 {[%clk 0:01:57]} 12. cxb5 {[%clk 0:01:45]}  Nb4 {[%clk 0:01:56]} 13. d4 {[%clk 0:01:20]}  b6 {[%clk 0:01:14]} 14. Bg2 {[%clk 0:01:04]}  Bb7 {[%clk 0:01:13]} 15. O-O {[%clk 0:01:05]}  Nd5 {[%clk 0:01:08]} 16. Ne5 {[%clk 0:00:43]}  Qf6 {[%clk 0:01:05]} 17. Qg4 {[%clk 0:00:27]}  Bd6 {[%clk 0:00:49]} 18. dxc5 {[%clk 0:00:23]}  Bxc5 {[%clk 0:00:45]} 19. Nd3 {[%clk 0:00:23]}  Bd4 {[%clk 0:00:43]} 20. Bxd4 {[%clk 0:00:13]}  Qxd4 {[%clk 0:00:43]} 21. Qg3 {[%clk 0:00:14]}  O-O {[%clk 0:00:41]} 22. a4 {[%clk 0:00:13]}  Rab8 {[%clk 0:00:41]} 23. Rad1 {[%clk 0:00:12]}  Qf6 {[%clk 0:00:33]} 24. Rfe1 {[%clk 0:00:09]}  Rfd8 {[%clk 0:00:33]} 25. Ne5 {[%clk 0:00:09]}  Nxf4 {[%clk 0:00:31]} 26. Rxd8+ {[%clk 0:00:10]}  Rxd8 {[%clk 0:00:30]} 27. Nc6 {[%clk 0:00:03]}  Rd3 {[%clk 0:00:26]} 28. Qg4 {[%clk 0:00:02]}  h5 {[%clk 0:00:25]} 0-1


[Site "https://www.chess.com"]

[Event "Titled Tuesday Blitz December 7 2021"]
[White "Gabrielian, Artur"]
[Black "Nakamura, Hikaru"]
[WhiteFideId "4131002"]
[BlackFideId "2016192"]
[WhiteElo "2440"]
[BlackElo "2884"]
[Result "0-1"]
[Round "03"]
[TimeControl "180+1"]
[Date "2021.12.07"]
[WhiteClock "0:00:01"]
[BlackClock "0:00:08"]

1. e4 {[%clk 0:03:00]}  c6 {[%clk 0:02:58]} 2. d4 {[%clk 0:03:00]}  d5 {[%clk 0:02:58]} 3. e5 {[%clk 0:03:01]}  Bf5 {[%clk 0:02:58]} 4. h4 {[%clk 0:03:01]}  h5 {[%clk 0:02:57]} 5. Bd3 {[%clk 0:03:01]}  Bxd3 {[%clk 0:02:58]} 6. Qxd3 {[%clk 0:03:02]}  e6 {[%clk 0:02:58]} 7. Nf3 {[%clk 0:03:02]}  Qa5+ {[%clk 0:02:59]} 8. Nbd2 {[%clk 0:03:02]}  Qa6 {[%clk 0:03:00]} 9. c4 {[%clk 0:03:02]}  Ne7 {[%clk 0:03:00]} 10. O-O {[%clk 0:03:01]}  Nf5 {[%clk 0:03:00]} 11. b3 {[%clk 0:02:57]}  Nd7 {[%clk 0:03:00]} 12. a4 {[%clk 0:02:57]}  Bb4 {[%clk 0:03:01]} 13. Rd1 {[%clk 0:02:55]}  f6 {[%clk 0:02:45]} 14. exf6 {[%clk 0:02:41]}  gxf6 {[%clk 0:02:46]} 15. Nf1 {[%clk 0:02:40]}  Kf7 {[%clk 0:02:37]} 16. Ne3 {[%clk 0:02:39]}  Ne7 {[%clk 0:02:33]} 17. a5 {[%clk 0:02:26]}  b5 {[%clk 0:02:11]} 18. c5 {[%clk 0:02:17]}  e5 {[%clk 0:02:04]} 19. dxe5 {[%clk 0:02:08]}  fxe5 {[%clk 0:02:02]} 20. Ng5+ {[%clk 0:02:04]}  Ke8 {[%clk 0:02:02]} 21. Nf5 {[%clk 0:01:48]}  Nxc5 {[%clk 0:02:00]} 22. Ng7+ {[%clk 0:01:36]}  Kd8 {[%clk 0:01:54]} 23. Qh3 {[%clk 0:01:26]}  Qc8 {[%clk 0:01:26]} 24. Qe3 {[%clk 0:01:12]}  Ng6 {[%clk 0:01:16]} 25. Bd2 {[%clk 0:00:31]}  Bxd2 {[%clk 0:01:14]} 26. Qxc5 {[%clk 0:00:26]}  Bxg5 {[%clk 0:01:14]} 27. Qd6+ {[%clk 0:00:26]}  Qd7 {[%clk 0:01:14]} 28. Qxg6 {[%clk 0:00:17]}  Kc8 {[%clk 0:01:09]} 29. Rac1 {[%clk 0:00:16]}  Bxc1 {[%clk 0:01:07]} 30. Rxc1 {[%clk 0:00:17]}  Rb8 {[%clk 0:00:44]} 31. Ne6 {[%clk 0:00:13]}  Qd6 {[%clk 0:00:34]} 32. Qf7 {[%clk 0:00:11]}  Rb7 {[%clk 0:00:33]} 33. Qf5 {[%clk 0:00:10]}  Kb8 {[%clk 0:00:32]} 34. a6 {[%clk 0:00:10]}  Re7 {[%clk 0:00:31]} 35. Nc5 {[%clk 0:00:10]}  Kc7 {[%clk 0:00:25]} 36. Nb7 {[%clk 0:00:10]}  Qh6 {[%clk 0:00:25]} 37. Qc2 {[%clk 0:00:09]}  Rc8 {[%clk 0:00:16]} 38. Qc5 {[%clk 0:00:09]}  Re6 {[%clk 0:00:15]} 39. Na5 {[%clk 0:00:09]}  Kb8 {[%clk 0:00:15]} 40. b4 {[%clk 0:00:04]}  e4 {[%clk 0:00:15]} 41. Qd4 {[%clk 0:00:04]}  e3 {[%clk 0:00:15]} 42. Rf1 {[%clk 0:00:02]}  Qf6 {[%clk 0:00:12]} 43. Qc5 {[%clk 0:00:02]}  e2 {[%clk 0:00:12]} 44. Re1 {[%clk 0:00:02]}  Ka8 {[%clk 0:00:11]} 45. Nb7 {[%clk 0:00:02]}  Qe7 {[%clk 0:00:09]} 46. Qc3 {[%clk 0:00:02]}  Qxh4 {[%clk 0:00:08]} 47. Nc5 {[%clk 0:00:01]}  Rg6 {[%clk 0:00:08]} 48. Qf3 {[%clk 0:00:01]}  Qg4 {[%clk 0:00:08]} 0-1


[Site "https://www.chess.com"]

[Event "Titled Tuesday Blitz December 7 2021"]
[White "Gasanov, Eldar"]
[Black "Tasev, Dejan"]
[WhiteFideId "14104466"]
[BlackFideId "936618"]
[WhiteElo "2454"]
[BlackElo "2253"]
[Result "1-0"]
[Round "03"]
[TimeControl "180+1"]
[Date "2021.12.07"]
[WhiteClock "0:00:22"]
[BlackClock "0:00:56"]

1. d4 {[%clk 0:03:00]}  Nf6 {[%clk 0:02:57]} 2. c4 {[%clk 0:03:01]}  g6 {[%clk 0:02:57]} 3. Nc3 {[%clk 0:03:01]}  Bg7 {[%clk 0:02:58]} 4. Bg5 {[%clk 0:03:00]}  O-O {[%clk 0:02:57]} 5. e4 {[%clk 0:02:57]}  d6 {[%clk 0:02:57]} 6. Qd2 {[%clk 0:02:57]}  Nbd7 {[%clk 0:02:57]} 7. Bd3 {[%clk 0:02:57]}  c5 {[%clk 0:02:57]} 8. Nf3 {[%clk 0:02:42]}  a6 {[%clk 0:02:57]} 9. O-O {[%clk 0:02:40]}  b6 {[%clk 0:02:55]} 10. d5 {[%clk 0:02:36]}  b5 {[%clk 0:02:55]} 11. cxb5 {[%clk 0:02:34]}  axb5 {[%clk 0:02:55]} 12. Nxb5 {[%clk 0:02:32]}  Ba6 {[%clk 0:02:55]} 13. a4 {[%clk 0:02:30]}  Bxb5 {[%clk 0:02:47]} 14. axb5 {[%clk 0:02:28]}  Qb6 {[%clk 0:02:38]} 15. Qc2 {[%clk 0:02:00]}  h6 {[%clk 0:02:34]} 16. Bd2 {[%clk 0:01:56]}  Ng4 {[%clk 0:02:20]} 17. Be2 {[%clk 0:01:56]}  Nge5 {[%clk 0:02:13]} 18. Nxe5 {[%clk 0:01:51]}  Nxe5 {[%clk 0:02:13]} 19. Ra6 {[%clk 0:01:45]}  Qc7 {[%clk 0:01:54]} 20. Rfa1 {[%clk 0:01:43]}  Rab8 {[%clk 0:01:53]} 21. Ra7 {[%clk 0:01:27]}  Rb7 {[%clk 0:01:50]} 22. Qa4 {[%clk 0:01:18]}  Rfb8 {[%clk 0:01:45]} 23. Rxb7 {[%clk 0:01:15]}  Rxb7 {[%clk 0:01:45]} 24. Qa8+ {[%clk 0:01:09]}  Kh7 {[%clk 0:01:43]} 25. Ba5 {[%clk 0:00:32]}  Qb8 {[%clk 0:01:32]} 26. Qxb8 {[%clk 0:00:28]}  Rxb8 {[%clk 0:01:32]} 27. Bc3 {[%clk 0:00:28]}  Kg8 {[%clk 0:01:26]} 28. Ra7 {[%clk 0:00:28]}  Bf6 {[%clk 0:01:22]} 29. f4 {[%clk 0:00:27]}  Ng4 {[%clk 0:01:10]} 30. Bxg4 {[%clk 0:00:27]}  Rxb5 {[%clk 0:01:10]} 31. e5 {[%clk 0:00:24]}  dxe5 {[%clk 0:01:08]} 32. fxe5 {[%clk 0:00:25]}  Bg5 {[%clk 0:01:08]} 33. Ra8+ {[%clk 0:00:22]}  Kg7 {[%clk 0:01:04]} 34. d6 {[%clk 0:00:23]}  exd6 {[%clk 0:00:58]} 35. exd6+ {[%clk 0:00:22]}  Bf6 {[%clk 0:00:55]} 36. Bxf6+ {[%clk 0:00:21]}  Kxf6 {[%clk 0:00:56]} 37. d7 {[%clk 0:00:22]} 1-0


[Site "https://www.chess.com"]